[Event "Late Titled Tuesday Blitz February 8 2022"]
[White "Moore, Nicholas"]
[Black "Dauner, Benedikt"]
[WhiteFideId "4303709"]
[BlackFideId "16225899"]
[WhiteElo "2286"]
[BlackElo "2230"]
[Result "1-0"]
[Round "04"]
[TimeControl "180+1"]
[Date "2022.02.09"]
[WhiteClock "0:00:11"]
[BlackClock "0:00:06"]

1. d4 {[%clk 0:03:00]}  Nf6 {[%clk 0:02:59]} 2. c4 {[%clk 0:03:01]}  c5 {[%clk 0:02:58]} 3. d5 {[%clk 0:03:01]}  b5 {[%clk 0:02:59]} 4. cxb5 {[%clk 0:03:01]}  a6 {[%clk 0:02:59]} 5. e3 {[%clk 0:03:02]}  g6 {[%clk 0:02:59]} 6. a4 {[%clk 0:03:01]}  Bg7 {[%clk 0:02:59]} 7. Nc3 {[%clk 0:03:02]}  O-O {[%clk 0:02:59]} 8. Nf3 {[%clk 0:03:02]}  d6 {[%clk 0:02:59]} 9. e4 {[%clk 0:02:58]}  e6 {[%clk 0:02:55]} 10. Be2 {[%clk 0:02:47]}  axb5 {[%clk 0:02:54]} 11. Bxb5 {[%clk 0:02:45]}  exd5 {[%clk 0:02:54]} 12. exd5 {[%clk 0:02:45]}  Na6 {[%clk 0:02:46]} 13. O-O {[%clk 0:02:43]}  Nb4 {[%clk 0:02:47]} 14. Bg5 {[%clk 0:02:40]}  Bf5 {[%clk 0:02:45]} 15. Qd2 {[%clk 0:02:39]}  Qa5 {[%clk 0:02:39]} 16. Rac1 {[%clk 0:02:19]}  Rfb8 {[%clk 0:02:18]} 17. Rfe1 {[%clk 0:02:06]}  Qc7 {[%clk 0:02:03]} 18. b3 {[%clk 0:02:02]}  h5 {[%clk 0:01:58]} 19. h3 {[%clk 0:01:59]}  Na6 {[%clk 0:01:47]} 20. Bc6 {[%clk 0:01:52]}  Nb4 {[%clk 0:01:32]} 21. Bxa8 {[%clk 0:01:45]}  Rxa8 {[%clk 0:01:33]} 22. Bf4 {[%clk 0:01:32]}  Nd3 {[%clk 0:01:14]} 23. Nb5 {[%clk 0:01:31]}  Qd8 {[%clk 0:01:08]} 24. Bxd6 {[%clk 0:01:25]}  Nxe1 {[%clk 0:01:05]} 25. Qxe1 {[%clk 0:01:09]}  Nxd5 {[%clk 0:00:59]} 26. Rxc5 {[%clk 0:01:03]}  Nf6 {[%clk 0:00:31]} 27. Nfd4 {[%clk 0:00:57]}  Ne4 {[%clk 0:00:29]} 28. Nxf5 {[%clk 0:00:51]}  gxf5 {[%clk 0:00:28]} 29. Bc7 {[%clk 0:00:44]}  Qd7 {[%clk 0:00:25]} 30. Rc1 {[%clk 0:00:35]}  Re8 {[%clk 0:00:25]} 31. Qd1 {[%clk 0:00:35]}  Qe6 {[%clk 0:00:22]} 32. Qxh5 {[%clk 0:00:33]}  Nxf2 {[%clk 0:00:19]} 33. Nd6 {[%clk 0:00:26]}  Re7 {[%clk 0:00:13]} 34. Nxf5 {[%clk 0:00:25]}  Rxc7 {[%clk 0:00:09]} 35. Rf1 {[%clk 0:00:14]}  Ne4 {[%clk 0:00:08]} 36. Qg4 {[%clk 0:00:13]}  Qb6+ {[%clk 0:00:04]} 37. Kh1 {[%clk 0:00:13]}  Nf2+ {[%clk 0:00:02]} 38. Rxf2 {[%clk 0:00:13]}  Rc1+ {[%clk 0:00:02]} 39. Kh2 {[%clk 0:00:13]}  Qc7+ {[%clk 0:00:02]} 40. g3 {[%clk 0:00:09]}  f6 {[%clk 0:00:02]} 41. Qxg7+ {[%clk 0:00:09]}  Qxg7 {[%clk 0:00:03]} 42. Nxg7 {[%clk 0:00:09]}  Kxg7 {[%clk 0:00:04]} 43. Rb2 {[%clk 0:00:09]}  Rc7 {[%clk 0:00:03]} 44. b4 {[%clk 0:00:09]}  Kf7 {[%clk 0:00:04]} 45. b5 {[%clk 0:00:10]}  Ke6 {[%clk 0:00:04]} 46. b6 {[%clk 0:00:10]}  Rb7 {[%clk 0:00:04]} 47. a5 {[%clk 0:00:11]}  Kd6 {[%clk 0:00:05]} 48. a6 {[%clk 0:00:11]}  Rb8 {[%clk 0:00:05]} 49. a7 {[%clk 0:00:12]}  Re8 {[%clk 0:00:05]} 50. b7 {[%clk 0:00:12]}  Kc6 {[%clk 0:00:05]} 51. b8=Q {[%clk 0:00:12]}  Re2+ {[%clk 0:00:04]} 52. Rxe2 {[%clk 0:00:11]}  f5 {[%clk 0:00:05]} 53. a8=Q+ {[%clk 0:00:11]}  Kc5 {[%clk 0:00:05]} 54. Qc7+ {[%clk 0:00:11]}  Kd4 {[%clk 0:00:06]} 55. Qad8# {[%clk 0:00:11]} 1-0


[Site "https://www.chess.com"]

[Event "Late Titled Tuesday Blitz February 8 2022"]
[White "Myers, Dominique"]
[Black "Golubovskis, Maksims"]
[WhiteFideId "2041715"]
[BlackFideId "11608528"]
[WhiteElo "1986"]
[BlackElo "2066"]
[Result "0-1"]
[Round "04"]
[TimeControl "180+1"]
[Date "2022.02.09"]
[WhiteClock "0:02:08"]
[BlackClock "0:00:21"]

1. e4 {[%clk 0:03:00]}  c5 {[%clk 0:02:50]} 2. Nf3 {[%clk 0:03:00]}  d6 {[%clk 0:02:50]} 3. d4 {[%clk 0:03:01]}  cxd4 {[%clk 0:02:49]} 4. Nxd4 {[%clk 0:03:01]}  Nf6 {[%clk 0:02:50]} 5. Nc3 {[%clk 0:03:02]}  a6 {[%clk 0:02:50]} 6. h3 {[%clk 0:03:02]}  e6 {[%clk 0:02:23]} 7. g3 {[%clk 0:03:01]}  b5 {[%clk 0:02:04]} 8. Bg2 {[%clk 0:03:00]}  Bb7 {[%clk 0:02:02]} 9. Qe2 {[%clk 0:02:59]}  Be7 {[%clk 0:02:00]} 10. Bg5 {[%clk 0:02:57]}  O-O {[%clk 0:01:36]} 11. O-O-O {[%clk 0:02:47]}  Nxe4 {[%clk 0:00:48]} 12. Bxe7 {[%clk 0:02:46]}  Nxc3 {[%clk 0:00:48]} 13. Bxd8 {[%clk 0:02:45]}  Nxe2+ {[%clk 0:00:48]} 14. Nxe2 {[%clk 0:02:44]}  Bxg2 {[%clk 0:00:44]} 15. Be7 {[%clk 0:02:43]}  Re8 {[%clk 0:00:37]} 16. Rhg1 {[%clk 0:02:33]}  Bf3 {[%clk 0:00:36]} 17. Bxd6 {[%clk 0:02:26]}  Bxe2 {[%clk 0:00:35]} 18. Rd2 {[%clk 0:02:23]}  Bc4 {[%clk 0:00:35]} 19. Be5 {[%clk 0:02:20]}  Nc6 {[%clk 0:00:32]} 20. Bc3 {[%clk 0:02:19]}  Bd5 {[%clk 0:00:32]} 21. a3 {[%clk 0:02:18]}  Rac8 {[%clk 0:00:30]} 22. Kb1 {[%clk 0:02:17]}  Red8 {[%clk 0:00:28]} 23. Rgd1 {[%clk 0:02:16]}  Bf3 {[%clk 0:00:26]} 24. Re1 {[%clk 0:02:15]}  Rxd2 {[%clk 0:00:25]} 25. Bxd2 {[%clk 0:02:15]}  Rd8 {[%clk 0:00:25]} 26. Kc1 {[%clk 0:02:14]}  Nd4 {[%clk 0:00:23]} 27. c3 {[%clk 0:02:08]}  Nb3+ {[%clk 0:00:23]} 28. Kc2 {[%clk 0:02:08]}  Nxd2 {[%clk 0:00:22]} 29. Re3 {[%clk 0:02:08]}  Be4+ {[%clk 0:00:21]} 30. Kc1 {[%clk 0:02:08]}  Nb3# {[%clk 0:00:21]} 0-1


[Site "https://www.chess.com"]

[Event "Late Titled Tuesday Blitz February 8 2022"]
[White "Niemann, Hans Moke"]
[Black "Kamsky, Gata"]
[WhiteFideId "2093596"]
[BlackFideId "2000024"]
[WhiteElo "2636"]
[BlackElo "2645"]
[Result "0-1"]
[Round "04"]
[TimeControl "180+1"]
[Date "2022.02.08"]
[WhiteClock "0:00:09"]
[BlackClock "0:00:08"]

1. d4 {[%clk 0:03:00]}  Nf6 {[%clk 0:02:54]} 2. Nc3 {[%clk 0:03:01]}  d5 {[%clk 0:02:53]} 3. Bf4 {[%clk 0:03:02]}  c6 {[%clk 0:02:48]} 4. e3 {[%clk 0:03:01]}  Bf5 {[%clk 0:02:45]} 5. Nf3 {[%clk 0:03:00]}  e6 {[%clk 0:02:44]} 6. Ne5 {[%clk 0:03:00]}  Nfd7 {[%clk 0:02:29]} 7. g4 {[%clk 0:02:47]}  Bg6 {[%clk 0:02:25]} 8. h4 {[%clk 0:02:17]}  Nxe5 {[%clk 0:02:24]} 9. Bxe5 {[%clk 0:02:14]}  h6 {[%clk 0:02:19]} 10. Bd3 {[%clk 0:02:13]}  Bxd3 {[%clk 0:02:18]} 11. Qxd3 {[%clk 0:02:13]}  Nd7 {[%clk 0:02:17]} 12. Bg3 {[%clk 0:02:14]}  Nf6 {[%clk 0:02:05]} 13. O-O-O {[%clk 0:01:49]}  Bd6 {[%clk 0:01:56]} 14. g5 {[%clk 0:01:25]}  Nh5 {[%clk 0:01:55]} 15. Bxd6 {[%clk 0:01:21]}  Qxd6 {[%clk 0:01:54]} 16. g6 {[%clk 0:01:20]}  f5 {[%clk 0:01:51]} 17. Kb1 {[%clk 0:01:17]}  O-O-O {[%clk 0:01:48]} 18. Na4 {[%clk 0:01:17]}  Nf6 {[%clk 0:01:31]} 19. f3 {[%clk 0:01:14]}  Nd7 {[%clk 0:01:28]} 20. Rc1 {[%clk 0:00:56]}  Qb4 {[%clk 0:01:21]} 21. b3 {[%clk 0:00:52]}  Rhf8 {[%clk 0:01:04]} 22. c4 {[%clk 0:00:48]}  Kb8 {[%clk 0:01:04]} 23. Qc3 {[%clk 0:00:26]}  Qxc3 {[%clk 0:00:50]} 24. Nxc3 {[%clk 0:00:27]}  f4 {[%clk 0:00:45]} 25. e4 {[%clk 0:00:22]}  dxc4 {[%clk 0:00:44]} 26. bxc4 {[%clk 0:00:22]}  c5 {[%clk 0:00:43]} 27. Ne2 {[%clk 0:00:17]}  cxd4 {[%clk 0:00:41]} 28. Nxd4 {[%clk 0:00:18]}  Nc5 {[%clk 0:00:21]} 29. Rcd1 {[%clk 0:00:17]}  Rd7 {[%clk 0:00:18]} 30. Kc2 {[%clk 0:00:14]}  Rfd8 {[%clk 0:00:18]} 31. Ne2 {[%clk 0:00:10]}  Rxd1 {[%clk 0:00:18]} 32. Rxd1 {[%clk 0:00:10]}  Rxd1 {[%clk 0:00:18]} 33. Kxd1 {[%clk 0:00:10]}  e5 {[%clk 0:00:18]} 34. Kc2 {[%clk 0:00:09]}  Kc7 {[%clk 0:00:18]} 35. Nc3 {[%clk 0:00:09]}  a6 {[%clk 0:00:17]} 36. h5 {[%clk 0:00:07]}  Kd6 {[%clk 0:00:17]} 37. Nd5 {[%clk 0:00:08]}  Ne6 {[%clk 0:00:16]} 38. Kd3 {[%clk 0:00:03]}  Ng5 {[%clk 0:00:15]} 39. Ke2 {[%clk 0:00:03]}  Kc5 {[%clk 0:00:15]} 40. Nc7 {[%clk 0:00:02]}  Kxc4 {[%clk 0:00:14]} 41. Ne8 {[%clk 0:00:03]}  Ne6 {[%clk 0:00:15]} 42. Nd6+ {[%clk 0:00:03]}  Kc3 {[%clk 0:00:12]} 43. Nxb7 {[%clk 0:00:04]}  Kb2 {[%clk 0:00:09]} 44. Kd3 {[%clk 0:00:05]}  Kxa2 {[%clk 0:00:09]} 45. Kc4 {[%clk 0:00:05]}  Ng5 {[%clk 0:00:09]} 46. Nd6 {[%clk 0:00:06]}  Nxf3 {[%clk 0:00:08]} 47. Nf5 {[%clk 0:00:05]}  Nh2 {[%clk 0:00:07]} 48. Kd3 {[%clk 0:00:04]}  f3 {[%clk 0:00:06]} 49. Ke3 {[%clk 0:00:04]}  Kb3 {[%clk 0:00:06]} 50. Nxg7 {[%clk 0:00:04]}  Ng4+ {[%clk 0:00:06]} 51. Kxf3 {[%clk 0:00:04]}  Nf6 {[%clk 0:00:06]} 52. Kg3 {[%clk 0:00:04]}  a5 {[%clk 0:00:06]} 53. Kh4 {[%clk 0:00:04]}  a4 {[%clk 0:00:06]} 54. Ne6 {[%clk 0:00:05]}  Ne8 {[%clk 0:00:05]} 55. Nc5+ {[%clk 0:00:04]}  Kb4 {[%clk 0:00:05]} 56. Nd3+ {[%clk 0:00:05]}  Kc3 {[%clk 0:00:05]} 57. Nc1 {[%clk 0:00:04]}  a3 {[%clk 0:00:05]} 58. Kg4 {[%clk 0:00:04]}  Ng7 {[%clk 0:00:05]} 59. Kf3 {[%clk 0:00:03]}  Kc2 {[%clk 0:00:05]} 60. Na2 {[%clk 0:00:03]}  Kb3 {[%clk 0:00:05]} 61. Nc1+ {[%clk 0:00:04]}  Kc2 {[%clk 0:00:05]} 62. Na2 {[%clk 0:00:04]}  Kb2 {[%clk 0:00:04]} 63. Nb4 {[%clk 0:00:04]}  a2 {[%clk 0:00:05]} 64. Nxa2 {[%clk 0:00:03]}  Kxa2 {[%clk 0:00:05]} 65. Ke3 {[%clk 0:00:04]}  Nxh5 {[%clk 0:00:05]} 66. Kd3 {[%clk 0:00:04]}  Nf4+ {[%clk 0:00:05]} 67. Kc4 {[%clk 0:00:05]}  Nxg6 {[%clk 0:00:05]} 68. Kd5 {[%clk 0:00:05]}  h5 {[%clk 0:00:06]} 69. Ke6 {[%clk 0:00:06]}  h4 {[%clk 0:00:06]} 70. Kf5 {[%clk 0:00:07]}  h3 {[%clk 0:00:07]} 71. Kxg6 {[%clk 0:00:07]}  h2 {[%clk 0:00:07]} 72. Kf5 {[%clk 0:00:08]}  h1=Q {[%clk 0:00:07]} 73. Kxe5 {[%clk 0:00:09]}  Qf3 {[%clk 0:00:07]} 74. Kd5 {[%clk 0:00:09]}  Kb3 {[%clk 0:00:08]} 0-1


[Site "https://www.chess.com"]

[Event "Late Titled Tuesday Blitz February 8 2022"]
[White "Nikologorsky, Matfei"]
[Black "Barp, Alberto"]
[WhiteFideId "24102474"]
[BlackFideId "872555"]
[WhiteElo "2231"]
[BlackElo "2229"]
[Result "1-0"]
[Round "04"]
[TimeControl "180+1"]
[Date "2022.02.09"]
[WhiteClock "0:00:27"]
[BlackClock "0:00:07"]

1. e4 {[%clk 0:03:00]}  c6 {[%clk 0:02:58]} 2. d4 {[%clk 0:03:00]}  d5 {[%clk 0:02:58]} 3. Nc3 {[%clk 0:03:01]}  dxe4 {[%clk 0:02:57]} 4. Nxe4 {[%clk 0:03:01]}  Bf5 {[%clk 0:02:55]} 5. Ng3 {[%clk 0:03:01]}  Bg6 {[%clk 0:02:56]} 6. Bc4 {[%clk 0:03:01]}  Nf6 {[%clk 0:02:46]} 7. h4 {[%clk 0:02:59]}  h6 {[%clk 0:02:45]} 8. N1e2 {[%clk 0:02:59]}  Nbd7 {[%clk 0:02:37]} 9. Nf4 {[%clk 0:02:56]}  Bh7 {[%clk 0:02:37]} 10. O-O {[%clk 0:02:56]}  Qc7 {[%clk 0:02:32]} 11. Re1 {[%clk 0:02:48]}  g5 {[%clk 0:01:49]} 12. hxg5 {[%clk 0:02:13]}  hxg5 {[%clk 0:01:49]} 13. Nh3 {[%clk 0:02:10]}  g4 {[%clk 0:01:35]} 14. Nf4 {[%clk 0:01:50]}  Nb6 {[%clk 0:01:10]} 15. Bb3 {[%clk 0:01:42]}  Nbd5 {[%clk 0:01:00]} 16. Nxd5 {[%clk 0:01:37]}  Nxd5 {[%clk 0:00:57]} 17. Qxg4 {[%clk 0:01:32]}  e6 {[%clk 0:00:54]} 18. c4 {[%clk 0:01:28]}  Nf6 {[%clk 0:00:52]} 19. Qf4 {[%clk 0:01:25]}  Qxf4 {[%clk 0:00:47]} 20. Bxf4 {[%clk 0:01:26]}  O-O-O {[%clk 0:00:46]} 21. Be5 {[%clk 0:01:24]}  Bg7 {[%clk 0:00:39]} 22. d5 {[%clk 0:01:23]}  c5 {[%clk 0:00:24]} 23. dxe6 {[%clk 0:01:18]}  fxe6 {[%clk 0:00:24]} 24. Rad1 {[%clk 0:01:10]}  b6 {[%clk 0:00:21]} 25. Ba4 {[%clk 0:01:09]}  Rhg8 {[%clk 0:00:16]} 26. Rxd8+ {[%clk 0:01:00]}  Rxd8 {[%clk 0:00:14]} 27. Bxf6 {[%clk 0:01:00]}  Bxf6 {[%clk 0:00:14]} 28. Rxe6 {[%clk 0:01:00]}  Bxb2 {[%clk 0:00:14]} 29. Bc6 {[%clk 0:00:56]}  Bd3 {[%clk 0:00:10]} 30. Bd5 {[%clk 0:00:53]}  b5 {[%clk 0:00:09]} 31. Rc6+ {[%clk 0:00:49]}  Kb8 {[%clk 0:00:08]} 32. Rxc5 {[%clk 0:00:49]}  bxc4 {[%clk 0:00:06]} 33. Bxc4 {[%clk 0:00:49]}  Bxc4 {[%clk 0:00:06]} 34. Rxc4 {[%clk 0:00:49]}  Bd4 {[%clk 0:00:06]} 35. Ne4 {[%clk 0:00:37]}  Bb6 {[%clk 0:00:06]} 36. g3 {[%clk 0:00:31]}  Kb7 {[%clk 0:00:06]} 37. Kg2 {[%clk 0:00:31]}  Ka6 {[%clk 0:00:07]} 38. a4 {[%clk 0:00:29]}  Ka5 {[%clk 0:00:07]} 39. f4 {[%clk 0:00:29]}  Rd3 {[%clk 0:00:07]} 40. g4 {[%clk 0:00:27]}  Re3 {[%clk 0:00:07]} 41. g5 {[%clk 0:00:27]} 1-0


[Site "https://www.chess.com"]

[Event "Late Titled Tuesday Blitz February 8 2022"]
[White "Nilsen, Tobias Lang"]
[Black "Prieto Aranguren, Alain"]
[WhiteFideId "1521624"]
[BlackFideId "2268906"]
[WhiteElo "2013"]
[BlackElo "2235"]
[Result "0-1"]
[Round "04"]
[TimeControl "180+1"]
[Date "2022.02.09"]
[WhiteClock "0:00:12"]
[BlackClock "0:00:21"]

1. f4 {[%clk 0:03:00]}  d6 {[%clk 0:02:56]} 2. Nf3 {[%clk 0:03:00]}  Nf6 {[%clk 0:02:54]} 3. g3 {[%clk 0:02:58]}  g6 {[%clk 0:02:54]} 4. Bg2 {[%clk 0:02:58]}  Bg7 {[%clk 0:02:55]} 5. O-O {[%clk 0:02:58]}  O-O {[%clk 0:02:55]} 6. d3 {[%clk 0:02:59]}  Nc6 {[%clk 0:02:55]} 7. Nc3 {[%clk 0:02:58]}  e5 {[%clk 0:02:55]} 8. e4 {[%clk 0:02:59]}  a6 {[%clk 0:02:52]} 9. h3 {[%clk 0:02:57]}  Nh5 {[%clk 0:02:49]} 10. Qe1 {[%clk 0:02:56]}  Bd7 {[%clk 0:02:45]} 11. f5 {[%clk 0:02:56]}  gxf5 {[%clk 0:02:43]} 12. exf5 {[%clk 0:02:57]}  d5 {[%clk 0:02:30]} 13. g4 {[%clk 0:02:52]}  d4 {[%clk 0:02:28]} 14. Ne4 {[%clk 0:02:44]}  Nf4 {[%clk 0:02:27]} 15. Qg3 {[%clk 0:02:33]}  Nxg2 {[%clk 0:02:26]} 16. Kxg2 {[%clk 0:02:34]}  f6 {[%clk 0:02:21]} 17. h4 {[%clk 0:02:33]}  Kh8 {[%clk 0:02:21]} 18. Rh1 {[%clk 0:02:32]}  Rg8 {[%clk 0:02:20]} 19. Kf2 {[%clk 0:02:30]}  Nb4 {[%clk 0:02:15]} 20. g5 {[%clk 0:02:22]}  Nxc2 {[%clk 0:02:09]} 21. g6 {[%clk 0:02:22]}  Bxf5 {[%clk 0:02:04]} 22. gxh7 {[%clk 0:02:02]}  Bxh7 {[%clk 0:01:59]} 23. Nfg5 {[%clk 0:02:02]}  fxg5 {[%clk 0:01:32]} 24. hxg5 {[%clk 0:02:01]}  Rf8+ {[%clk 0:01:31]} 25. Ke2 {[%clk 0:01:56]}  Qd7 {[%clk 0:01:05]} 26. g6 {[%clk 0:01:51]}  Qf5 {[%clk 0:01:04]} 27. Rb1 {[%clk 0:01:06]}  Ne3 {[%clk 0:00:51]} 28. Rxh7+ {[%clk 0:01:02]}  Kg8 {[%clk 0:00:49]} 29. Bxe3 {[%clk 0:01:03]}  dxe3 {[%clk 0:00:49]} 30. Rbh1 {[%clk 0:00:59]}  Rad8 {[%clk 0:00:29]} 31. R7h5 {[%clk 0:00:34]}  Qd7 {[%clk 0:00:23]} 32. Rh8+ {[%clk 0:00:26]}  Bxh8 {[%clk 0:00:23]} 33. Rxh8+ {[%clk 0:00:27]}  Kxh8 {[%clk 0:00:23]} 34. g7+ {[%clk 0:00:16]}  Qxg7 {[%clk 0:00:22]} 35. Qh3+ {[%clk 0:00:17]}  Kg8 {[%clk 0:00:21]} 36. Qe6+ {[%clk 0:00:16]}  Qf7 {[%clk 0:00:21]} 37. Nf6+ {[%clk 0:00:15]}  Kg7 {[%clk 0:00:21]} 38. Qg4+ {[%clk 0:00:11]}  Kxf6 {[%clk 0:00:21]} 39. Qh4+ {[%clk 0:00:12]}  Ke6 {[%clk 0:00:22]} 40. Qc4+ {[%clk 0:00:12]}  Kd7 {[%clk 0:00:21]} 0-1


[Site "https://www.chess.com"]

[Event "Late Titled Tuesday Blitz February 8 2022"]
[White "Novikov, Evgenij"]
[Black "Stanisz, Patryk"]
[WhiteFideId "4125380"]
[BlackFideId "1123106"]
[WhiteElo "2242"]
[BlackElo "1876"]
[Result "1-0"]
[Round "04"]
[TimeControl "180+1"]
[Date "2022.02.09"]
[WhiteClock "0:00:08"]
[BlackClock "0:00:01"]

1. e4 {[%clk 0:03:00]}  c5 {[%clk 0:02:59]} 2. d4 {[%clk 0:03:00]}  cxd4 {[%clk 0:03:00]} 3. c3 {[%clk 0:03:01]}  Nf6 {[%clk 0:03:00]} 4. e5 {[%clk 0:02:53]}  Nd5 {[%clk 0:03:00]} 5. cxd4 {[%clk 0:02:51]}  Nc6 {[%clk 0:03:00]} 6. Nc3 {[%clk 0:02:51]}  Nxc3 {[%clk 0:02:58]} 7. bxc3 {[%clk 0:02:52]}  d5 {[%clk 0:02:58]} 8. Bd3 {[%clk 0:02:50]}  e6 {[%clk 0:02:53]} 9. Ne2 {[%clk 0:02:46]}  Be7 {[%clk 0:02:53]} 10. O-O {[%clk 0:02:47]}  Bd7 {[%clk 0:02:50]} 11. f4 {[%clk 0:02:46]}  g6 {[%clk 0:02:49]} 12. Rb1 {[%clk 0:02:39]}  b6 {[%clk 0:02:47]} 13. Rf3 {[%clk 0:02:24]}  Rc8 {[%clk 0:02:47]} 14. Bd2 {[%clk 0:02:21]}  Na5 {[%clk 0:02:47]} 15. Qf1 {[%clk 0:02:03]}  Nc4 {[%clk 0:02:45]} 16. Be1 {[%clk 0:02:01]}  Qc7 {[%clk 0:02:37]} 17. Rh3 {[%clk 0:01:34]}  Qb7 {[%clk 0:02:30]} 18. g4 {[%clk 0:01:31]}  Qa6 {[%clk 0:02:07]} 19. f5 {[%clk 0:01:23]}  Bg5 {[%clk 0:02:01]} 20. fxe6 {[%clk 0:01:14]}  Bxe6 {[%clk 0:01:52]} 21. Nf4 {[%clk 0:01:13]}  Bxg4 {[%clk 0:01:30]} 22. Rg3 {[%clk 0:01:06]}  h5 {[%clk 0:01:11]} 23. Rxg4 {[%clk 0:01:02]}  hxg4 {[%clk 0:01:11]} 24. Nxg6 {[%clk 0:01:00]}  Be3+ {[%clk 0:01:00]} 25. Kh1 {[%clk 0:00:57]}  Rh6 {[%clk 0:00:48]} 26. Qf6 {[%clk 0:00:52]}  Rc7 {[%clk 0:00:26]} 27. Bh4 {[%clk 0:00:39]}  Rd7 {[%clk 0:00:16]} 28. e6 {[%clk 0:00:36]}  Rxg6 {[%clk 0:00:02]} 29. exd7+ {[%clk 0:00:08]}  Kxd7 {[%clk 0:00:03]} 30. Qxf7+ {[%clk 0:00:09]}  Kc6 {[%clk 0:00:03]} 31. Qxg6+ {[%clk 0:00:09]}  Kc7 {[%clk 0:00:02]} 32. Bg3+ {[%clk 0:00:08]}  Kc8 {[%clk 0:00:02]} 33. Qe8+ {[%clk 0:00:08]}  Kb7 {[%clk 0:00:02]} 34. Qd7+ {[%clk 0:00:08]}  Ka8 {[%clk 0:00:01]} 35. Qxd5+ {[%clk 0:00:08]} 1-0


[Site "https://www.chess.com"]

[Event "Late Titled Tuesday Blitz February 8 2022"]
[White "Oro, Luis"]
[Black "Morris-Suzuki, Sophie"]
[WhiteFideId "104094"]
[BlackFideId "30922615"]
[WhiteElo "2283"]
[BlackElo "2441"]
[Result "1-0"]
[Round "04"]
[TimeControl "180+1"]
[Date "2022.02.09"]
[WhiteClock "0:00:04"]
[BlackClock "0:00:06"]

1. e4 {[%clk 0:03:00]}  c5 {[%clk 0:03:00]} 2. Nf3 {[%clk 0:03:00]}  e6 {[%clk 0:02:59]} 3. d4 {[%clk 0:03:01]}  cxd4 {[%clk 0:03:00]} 4. Nxd4 {[%clk 0:03:02]}  Nc6 {[%clk 0:03:01]} 5. c4 {[%clk 0:03:01]}  Nf6 {[%clk 0:02:59]} 6. Nc3 {[%clk 0:03:01]}  Bb4 {[%clk 0:02:59]} 7. Nxc6 {[%clk 0:03:01]}  bxc6 {[%clk 0:02:59]} 8. Bd3 {[%clk 0:03:01]}  d5 {[%clk 0:02:58]} 9. exd5 {[%clk 0:03:01]}  Bxc3+ {[%clk 0:02:55]} 10. bxc3 {[%clk 0:03:01]}  cxd5 {[%clk 0:02:55]} 11. O-O {[%clk 0:02:54]}  O-O {[%clk 0:02:55]} 12. Qe2 {[%clk 0:02:47]}  Bb7 {[%clk 0:02:53]} 13. Bg5 {[%clk 0:02:36]}  h6 {[%clk 0:02:51]} 14. Bh4 {[%clk 0:02:35]}  Rc8 {[%clk 0:02:47]} 15. f3 {[%clk 0:02:08]}  Re8 {[%clk 0:02:46]} 16. cxd5 {[%clk 0:02:04]}  Bxd5 {[%clk 0:02:43]} 17. Rac1 {[%clk 0:01:58]}  Qb6+ {[%clk 0:02:39]} 18. Bf2 {[%clk 0:01:54]}  Qc7 {[%clk 0:02:29]} 19. c4 {[%clk 0:01:51]}  Bc6 {[%clk 0:02:29]} 20. Rfd1 {[%clk 0:01:48]}  Nd7 {[%clk 0:02:29]} 21. Qb2 {[%clk 0:01:36]}  Ne5 {[%clk 0:02:13]} 22. Be2 {[%clk 0:01:32]}  Rb8 {[%clk 0:02:11]} 23. Qc3 {[%clk 0:01:26]}  Ng6 {[%clk 0:02:00]} 24. Bd3 {[%clk 0:01:18]}  Nf4 {[%clk 0:01:58]} 25. Bg3 {[%clk 0:01:14]}  e5 {[%clk 0:01:56]} 26. Bf1 {[%clk 0:01:12]}  Qe7 {[%clk 0:01:28]} 27. c5 {[%clk 0:00:53]}  Qg5 {[%clk 0:00:49]} 28. Rd6 {[%clk 0:00:40]}  Nd5 {[%clk 0:00:22]} 29. Qe1 {[%clk 0:00:28]}  Rbc8 {[%clk 0:00:11]} 30. Rb1 {[%clk 0:00:15]}  h5 {[%clk 0:00:11]} 31. Ba6 {[%clk 0:00:10]}  Rc7 {[%clk 0:00:10]} 32. Bd3 {[%clk 0:00:06]}  Nf4 {[%clk 0:00:04]} 33. Bf1 {[%clk 0:00:05]}  Qe7 {[%clk 0:00:01]} 34. Bh4 {[%clk 0:00:05]}  f6 {[%clk 0:00:01]} 35. Bg3 {[%clk 0:00:05]}  g5 {[%clk 0:00:01]} 36. h4 {[%clk 0:00:05]}  gxh4 {[%clk 0:00:01]} 37. Bxh4 {[%clk 0:00:05]}  Rf8 {[%clk 0:00:01]} 38. Qg3+ {[%clk 0:00:06]}  Qg7 {[%clk 0:00:01]} 39. Qf2 {[%clk 0:00:06]}  Qg6 {[%clk 0:00:01]} 40. Qd2 {[%clk 0:00:05]}  Nh3+ {[%clk 0:00:01]} 41. Kh2 {[%clk 0:00:06]}  Nf4 {[%clk 0:00:02]} 42. Bg3 {[%clk 0:00:06]}  f5 {[%clk 0:00:03]} 43. Bxf4 {[%clk 0:00:06]}  Qf7 {[%clk 0:00:03]} 44. Bxe5 {[%clk 0:00:06]}  Qe7 {[%clk 0:00:03]} 45. Bf4 {[%clk 0:00:05]}  Qf7 {[%clk 0:00:03]} 46. Bg5 {[%clk 0:00:06]}  Re8 {[%clk 0:00:03]} 47. Rc1 {[%clk 0:00:06]}  Rd7 {[%clk 0:00:04]} 48. Bc4 {[%clk 0:00:06]}  Rxd6 {[%clk 0:00:04]} 49. Bxf7+ {[%clk 0:00:06]}  Kxf7 {[%clk 0:00:04]} 50. Qxd6 {[%clk 0:00:06]}  Re6 {[%clk 0:00:05]} 51. Qc7+ {[%clk 0:00:06]}  Kg6 {[%clk 0:00:05]} 52. Qd8 {[%clk 0:00:06]}  Re8 {[%clk 0:00:05]} 53. Qf6+ {[%clk 0:00:06]}  Kh7 {[%clk 0:00:05]} 54. Qh6+ {[%clk 0:00:05]}  Kg8 {[%clk 0:00:06]} 55. Qg6+ {[%clk 0:00:06]}  Kf8 {[%clk 0:00:06]} 56. Qxc6 {[%clk 0:00:03]}  Kf7 {[%clk 0:00:06]} 57. Qd7+ {[%clk 0:00:03]}  Kf8 {[%clk 0:00:06]} 58. Bh6+ {[%clk 0:00:03]}  Kg8 {[%clk 0:00:06]} 59. Qg7# {[%clk 0:00:04]} 1-0


[Site "https://www.chess.com"]